[Event "Early-Titled-Tuesday-Blitz-January-23-2024"]
[Site "Chess.com"]
[Date "2024.01.23"]
[Round "9"]
[White "Arlo2024"]
[Black "ExchangeAB"]
[Result "1/2-1/2"]
[WhiteElo "2308"]
[BlackElo "2422"]
[TimeControl "180+1"]
[EndTime "9:47:30 PST"]
[Termination "Game drawn by repetition"]

1. e4 {[%clk 0:03:00.9]} 1... c6 {[%clk 0:02:59.6]} 2. d4 {[%clk 0:03:01]} 2...
d5 {[%clk 0:03:00.5]} 3. exd5 {[%clk 0:03:01.8]} 3... cxd5 {[%clk 0:03:00.6]} 4.
Bd3 {[%clk 0:03:02.5]} 4... Nf6 {[%clk 0:03:01.5]} 5. h3 {[%clk 0:03:02.2]} 5...
g6 {[%clk 0:03:01.2]} 6. Nf3 {[%clk 0:03:01.6]} 6... Bf5 {[%clk 0:03:01.7]} 7.
O-O {[%clk 0:03:01.1]} 7... Bxd3 {[%clk 0:03:01.5]} 8. Qxd3 {[%clk 0:03:02]}
8... Bg7 {[%clk 0:03:01.9]} 9. Re1 {[%clk 0:03:01.5]} 9... O-O {[%clk 0:03:02]}
10. Bf4 {[%clk 0:03:01.6]} 10... Ne4 {[%clk 0:03:01.5]} 11. Nbd2 {[%clk
0:02:59.7]} 11... Nxd2 {[%clk 0:03:00.4]} 12. Qxd2 {[%clk 0:03:00.6]} 12... e6
{[%clk 0:02:59.4]} 13. Re2 {[%clk 0:02:45.2]} 13... Nc6 {[%clk 0:02:57.7]} 14.
c3 {[%clk 0:02:44.2]} 14... b6 {[%clk 0:02:56.4]} 15. Rae1 {[%clk 0:02:41.8]}
15... b5 {[%clk 0:02:55.8]} 16. a3 {[%clk 0:02:40.9]} 16... a5 {[%clk
0:02:55.3]} 17. h4 {[%clk 0:02:38.9]} 17... Qb6 {[%clk 0:02:50.7]} 18. h5 {[%clk
0:02:33.4]} 18... b4 {[%clk 0:02:48.8]} 19. axb4 {[%clk 0:02:34]} 19... axb4
{[%clk 0:02:48.9]} 20. Bh6 {[%clk 0:02:30.6]} 20... bxc3 {[%clk 0:02:47.3]} 21.
bxc3 {[%clk 0:02:30.6]} 21... Ne7 {[%clk 0:02:24.5]} 22. Bxg7 {[%clk 0:02:09.6]}
22... Kxg7 {[%clk 0:02:25.4]} 23. h6+ {[%clk 0:01:51]} 23... Kg8 {[%clk
0:02:20.2]} 24. Ne5 {[%clk 0:01:49.1]} 24... Qc7 {[%clk 0:02:15.2]} 25. Ng4
{[%clk 0:01:44.5]} 25... Kh8 {[%clk 0:01:59.6]} 26. Re3 {[%clk 0:01:10.3]} 26...
Nf5 {[%clk 0:01:56.7]} 27. Rf3 {[%clk 0:01:05.2]} 27... Rac8 {[%clk 0:01:44.2]}
28. Nf6 {[%clk 0:01:01.7]} 28... Nd6 {[%clk 0:01:33.3]} 29. Qg5 {[%clk
0:00:46.7]} 29... Qd8 {[%clk 0:01:24.3]} 30. Qf4 {[%clk 0:00:36.3]} 30... Nc4
{[%clk 0:01:15.5]} 31. g4 {[%clk 0:00:33.6]} 31... Qd6 {[%clk 0:01:13.9]} 32.
Qg5 {[%clk 0:00:32]} 32... Qd8 {[%clk 0:01:13.1]} 33. Qf4 {[%clk 0:00:31.2]}
33... Qc7 {[%clk 0:01:09.8]} 34. Qg5 {[%clk 0:00:30.8]} 34... Qe7 {[%clk
0:00:51.5]} 35. Qf4 {[%clk 0:00:30.5]} 35... Rcd8 {[%clk 0:00:45.8]} 36. g5
{[%clk 0:00:30.6]} 36... Qd6 {[%clk 0:00:43.7]} 37. Qh4 {[%clk 0:00:28.6]} 37...
Qb8 {[%clk 0:00:39.6]} 38. Ng4 {[%clk 0:00:28.6]} 38... Nd6 {[%clk 0:00:38.3]}
39. Ne5 {[%clk 0:00:26.4]} 39... Nf5 {[%clk 0:00:37.8]} 40. Qf4 {[%clk
0:00:26.3]} 40... Kg8 {[%clk 0:00:37]} 41. Rfe3 {[%clk 0:00:23.1]} 41... f6
{[%clk 0:00:27.3]} 42. gxf6 {[%clk 0:00:19.9]} 42... Rxf6 {[%clk 0:00:28.2]} 43.
Rf3 {[%clk 0:00:18.1]} 43... Rdf8 {[%clk 0:00:27.8]} 44. Qg5 {[%clk 0:00:16.2]}
44... Qd6 {[%clk 0:00:23.6]} 45. Ng4 {[%clk 0:00:16.5]} 45... R6f7 {[%clk
0:00:21.8]} 46. Ne5 {[%clk 0:00:16.6]} 46... Qd8 {[%clk 0:00:17.2]} 47. Nxf7
{[%clk 0:00:14.5]} 47... Kxf7 {[%clk 0:00:15.5]} 48. Qxd8 {[%clk 0:00:12.1]}
48... Rxd8 {[%clk 0:00:16.4]} 49. Ra1 {[%clk 0:00:11.4]} 49... Rd7 {[%clk
0:00:16.7]} 50. Ra6 {[%clk 0:00:11.1]} 50... Rc7 {[%clk 0:00:14.1]} 51. Rh3
{[%clk 0:00:10]} 51... Kf6 {[%clk 0:00:12.6]} 52. Kf1 {[%clk 0:00:07.8]} 52...
Rd7 {[%clk 0:00:10.1]} 53. Ke2 {[%clk 0:00:07.9]} 53... Re7 {[%clk 0:00:10.2]}
54. Kd2 {[%clk 0:00:08.2]} 54... Kg5 {[%clk 0:00:10.3]} 55. Ra1 {[%clk
0:00:01.4]} 55... Kf6 {[%clk 0:00:09]} 56. Rah1 {[%clk 0:00:01.6]} 56... Nd6
{[%clk 0:00:08.8]} 57. Ra1 {[%clk 0:00:02.4]} 57... Ne4+ {[%clk 0:00:08.9]} 58.
Ke3 {[%clk 0:00:02.2]} 58... Nxc3 {[%clk 0:00:08.3]} 59. Rf3+ {[%clk 0:00:03.1]}
59... Kg5 {[%clk 0:00:08.1]} 60. Rg1+ {[%clk 0:00:01.7]} 60... Kxh6 {[%clk
0:00:08]} 61. Rh3+ {[%clk 0:00:02.6]} 61... Kg7 {[%clk 0:00:08.2]} 62. Rgh1
{[%clk 0:00:03.4]} 62... Kg8 {[%clk 0:00:08.4]} 63. Rg3 {[%clk 0:00:03.1]} 63...
Ne4 {[%clk 0:00:08.6]} 64. Rgh3 {[%clk 0:00:02.6]} 64... Nd6 {[%clk 0:00:08.8]}
65. Ra1 {[%clk 0:00:03.5]} 65... Nf5+ {[%clk 0:00:09.1]} 66. Kf4 {[%clk
0:00:03.9]} 66... Kg7 {[%clk 0:00:10]} 67. Ke5 {[%clk 0:00:04.1]} 67... Rf7
{[%clk 0:00:10.4]} 68. Ra8 {[%clk 0:00:03.9]} 68... Ne7 {[%clk 0:00:09.7]} 69.
Kd6 {[%clk 0:00:03.8]} 69... Nf5+ {[%clk 0:00:09.7]} 70. Kxe6 {[%clk 0:00:04.4]}
70... Nxd4+ {[%clk 0:00:10]} 71. Kxd5 {[%clk 0:00:05]} 71... Nf5 {[%clk
0:00:10.9]} 72. Rha3 {[%clk 0:00:04.5]} 72... Rd7+ {[%clk 0:00:11.2]} 73. Ke4
{[%clk 0:00:04]} 73... Re7+ {[%clk 0:00:11.5]} 74. Kf3 {[%clk 0:00:04.9]} 74...
Rf7 {[%clk 0:00:11.9]} 75. R8a7 {[%clk 0:00:05.8]} 75... Nd4+ {[%clk 0:00:11.6]}
76. Kg2 {[%clk 0:00:05.7]} 76... Ne6 {[%clk 0:00:11.9]} 77. Rxf7+ {[%clk
0:00:05.7]} 77... Kxf7 {[%clk 0:00:12.8]} 78. Kg3 {[%clk 0:00:06.2]} 78... h5
{[%clk 0:00:12.4]} 79. Ra7+ {[%clk 0:00:07.1]} 79... Kf6 {[%clk 0:00:12.4]} 80.
Ra6 {[%clk 0:00:08]} 80... Kf5 {[%clk 0:00:12.3]} 81. Ra5+ {[%clk 0:00:07.7]}
81... Kf6 {[%clk 0:00:12.6]} 82. Ra6 {[%clk 0:00:08.3]} 82... g5 {[%clk
0:00:12.9]} 83. Ra5 {[%clk 0:00:04.8]} 83... Kg6 {[%clk 0:00:12.9]} 84. Ra6
{[%clk 0:00:04.9]} 84... Kf5 {[%clk 0:00:13.3]} 85. Ra5+ {[%clk 0:00:05.4]}
85... Kf6 {[%clk 0:00:13.7]} 86. Ra6 {[%clk 0:00:05.8]} 86... Kf5 {[%clk
0:00:14.1]} 87. Ra5+ {[%clk 0:00:06.3]} 87... Kf6 {[%clk 0:00:14.1]} 88. Ra6
{[%clk 0:00:06.8]} 88... Kf5 {[%clk 0:00:14.2]} 1/2-1/2

[Event "Early-Titled-Tuesday-Blitz-January-23-2024"]
[Site "Chess.com"]
[Date "2024.01.23"]
[Round "9"]
[White "supereagles1201"]
[Black "CarlosjPineror"]
[Result "1/2-1/2"]
[WhiteElo "2393"]
[BlackElo "2605"]
[TimeControl "180+1"]
[EndTime "9:48:28 PST"]
[Termination "Game drawn by 50-move rule"]

1. d4 {[%clk 0:03:00.9]} 1... Nf6 {[%clk 0:02:59.5]} 2. Bg5 {[%clk 0:03:00.6]}
2... c5 {[%clk 0:02:58.3]} 3. d5 {[%clk 0:03:00.1]} 3... Qb6 {[%clk 0:02:57.5]}
4. Nc3 {[%clk 0:03:00.1]} 4... d6 {[%clk 0:02:55.3]} 5. e4 {[%clk 0:02:59.2]}
5... g6 {[%clk 0:02:50.3]} 6. Rb1 {[%clk 0:02:58.7]} 6... Bg7 {[%clk 0:02:50.3]}
7. Nf3 {[%clk 0:02:54]} 7... Bg4 {[%clk 0:02:41.6]} 8. Be2 {[%clk 0:02:53.2]}
8... Nbd7 {[%clk 0:02:40.4]} 9. Nd2 {[%clk 0:02:50.4]} 9... Bxe2 {[%clk
0:02:38.6]} 10. Qxe2 {[%clk 0:02:51.3]} 10... O-O {[%clk 0:02:34.8]} 11. Nc4
{[%clk 0:02:46.5]} 11... Qc7 {[%clk 0:02:27.2]} 12. a4 {[%clk 0:02:46.3]} 12...
a6 {[%clk 0:02:26.4]} 13. a5 {[%clk 0:02:45.6]} 13... Rfe8 {[%clk 0:02:21.4]}
14. O-O {[%clk 0:02:44.4]} 14... b5 {[%clk 0:02:20.8]} 15. axb6 {[%clk
0:02:43.4]} 15... Nxb6 {[%clk 0:02:21.3]} 16. Qd3 {[%clk 0:02:15.4]} 16... Nfd7
{[%clk 0:02:16.2]} 17. Nxb6 {[%clk 0:02:02.4]} 17... Qxb6 {[%clk 0:02:12]} 18.
Nd1 {[%clk 0:01:38]} 18... Qb5 {[%clk 0:02:06.5]} 19. Qd2 {[%clk 0:01:22.9]}
19... Rab8 {[%clk 0:02:04.6]} 20. c3 {[%clk 0:01:19.9]} 20... Ne5 {[%clk
0:02:02.7]} 21. Ne3 {[%clk 0:01:19.4]} 21... Qd3 {[%clk 0:01:59]} 22. Qxd3
{[%clk 0:00:49.9]} 22... Nxd3 {[%clk 0:01:58]} 23. Nc4 {[%clk 0:00:49.8]} 23...
Ne5 {[%clk 0:01:52.6]} 24. Nxe5 {[%clk 0:00:42]} 24... Bxe5 {[%clk 0:01:51.6]}
25. Rfc1 {[%clk 0:00:35.8]} 25... Rb3 {[%clk 0:01:50.8]} 26. Ra1 {[%clk
0:00:33.1]} 26... Kg7 {[%clk 0:01:25.1]} 27. Rxa6 {[%clk 0:00:32.5]} 27... h6
{[%clk 0:01:25.5]} 28. Be3 {[%clk 0:00:28.4]} 28... Rxb2 {[%clk 0:01:23.2]} 29.
Ra3 {[%clk 0:00:19.7]} 29... Reb8 {[%clk 0:01:14.9]} 30. g3 {[%clk 0:00:19.7]}
30... Rb1 {[%clk 0:01:09.9]} 31. Ra1 {[%clk 0:00:19.6]} 31... Rxa1 {[%clk
0:01:09.6]} 32. Rxa1 {[%clk 0:00:19.6]} 32... Bxc3 {[%clk 0:01:10.3]} 33. Ra7
{[%clk 0:00:19.5]} 33... Re8 {[%clk 0:01:01.2]} 34. Rc7 {[%clk 0:00:18.7]} 34...
e6 {[%clk 0:00:57.8]} 35. dxe6 {[%clk 0:00:17.4]} 35... Rxe6 {[%clk 0:00:58.7]}
36. Bf4 {[%clk 0:00:15.2]} 36... Be5 {[%clk 0:00:53.1]} 37. Be3 {[%clk
0:00:14.7]} 37... Bc3 {[%clk 0:00:42.9]} 38. Bf4 {[%clk 0:00:13.5]} 38... g5
{[%clk 0:00:41]} 39. Be3 {[%clk 0:00:12.9]} 39... g4 {[%clk 0:00:38.4]} 40. Bf4
{[%clk 0:00:11.7]} 40... h5 {[%clk 0:00:37.5]} 41. Kg2 {[%clk 0:00:11.4]} 41...
Be5 {[%clk 0:00:36]} 42. Be3 {[%clk 0:00:10.1]} 42... Bf6 {[%clk 0:00:32.4]} 43.
f3 {[%clk 0:00:10.1]} 43... gxf3+ {[%clk 0:00:31.5]} 44. Kxf3 {[%clk 0:00:11]}
44... Be5 {[%clk 0:00:31.9]} 45. Bf4 {[%clk 0:00:10.7]} 45... Kf6 {[%clk
0:00:30.7]} 46. Rd7 {[%clk 0:00:09.7]} 46... c4 {[%clk 0:00:25.7]} 47. Rc7
{[%clk 0:00:09.9]} 47... c3 {[%clk 0:00:20]} 48. Bxe5+ {[%clk 0:00:10.4]} 48...
Kxe5 {[%clk 0:00:20.3]} 49. Rxc3 {[%clk 0:00:11]} 49... Rf6+ {[%clk 0:00:20.7]}
50. Ke3 {[%clk 0:00:10.6]} 50... Rf1 {[%clk 0:00:21.1]} 51. Ra3 {[%clk
0:00:09.1]} 51... Re1+ {[%clk 0:00:21.1]} 52. Kf3 {[%clk 0:00:09.6]} 52... Rxe4
{[%clk 0:00:21]} 53. Ra7 {[%clk 0:00:09.5]} 53... f5 {[%clk 0:00:20.4]} 54. Rh7
{[%clk 0:00:09.6]} 54... d5 {[%clk 0:00:19.9]} 55. Rxh5 {[%clk 0:00:09.6]} 55...
d4 {[%clk 0:00:20.5]} 56. Rh8 {[%clk 0:00:10]} 56... Re3+ {[%clk 0:00:21.2]} 57.
Kf2 {[%clk 0:00:09.5]} 57... Kf6 {[%clk 0:00:21.6]} 58. Rd8 {[%clk 0:00:09.2]}
58... Rd3 {[%clk 0:00:21.8]} 59. h4 {[%clk 0:00:07.8]} 59... Kg6 {[%clk
0:00:20.4]} 60. Rd5 {[%clk 0:00:06.3]} 60... Rd2+ {[%clk 0:00:17.6]} 61. Kf3
{[%clk 0:00:05.9]} 61... Rd3+ {[%clk 0:00:18]} 62. Kf2 {[%clk 0:00:06]} 62...
Kf6 {[%clk 0:00:17.2]} 63. h5 {[%clk 0:00:05.7]} 63... Kg5 {[%clk 0:00:16.1]}
64. h6 {[%clk 0:00:05.9]} 64... Rd2+ {[%clk 0:00:15.3]} 65. Kf3 {[%clk
0:00:05.6]} 65... Rd3+ {[%clk 0:00:15.9]} 66. Kf2 {[%clk 0:00:06]} 66... Kxh6
{[%clk 0:00:14.5]} 67. Rxf5 {[%clk 0:00:05.1]} 67... Kg6 {[%clk 0:00:15.4]} 68.
Rd5 {[%clk 0:00:05.1]} 68... Kf6 {[%clk 0:00:15]} 69. Ke2 {[%clk 0:00:05.6]}
69... Re3+ {[%clk 0:00:14.7]} 70. Kd2 {[%clk 0:00:05.1]} 70... Rxg3 {[%clk
0:00:15.3]} 71. Rxd4 {[%clk 0:00:04.7]} 71... Ke5 {[%clk 0:00:16]} 72. Rd3
{[%clk 0:00:05.2]} 72... Rg2+ {[%clk 0:00:16.6]} 73. Ke3 {[%clk 0:00:05]} 73...
Ra2 {[%clk 0:00:17.1]} 74. Rc3 {[%clk 0:00:03.3]} 74... Kd5 {[%clk 0:00:16.7]}
75. Rd3+ {[%clk 0:00:03.8]} 75... Ke5 {[%clk 0:00:17.1]} 76. Rc3 {[%clk
0:00:03.8]} 76... Ra5 {[%clk 0:00:16.7]} 77. Rd3 {[%clk 0:00:04.4]} 77... Ra4
{[%clk 0:00:16.8]} 78. Rc3 {[%clk 0:00:04.9]} 78... Re4+ {[%clk 0:00:17.3]} 79.
Kd3 {[%clk 0:00:04.8]} 79... Rd4+ {[%clk 0:00:17.4]} 80. Kc2 {[%clk 0:00:05.3]}
80... Rd7 {[%clk 0:00:16.2]} 81. Kb3 {[%clk 0:00:06]} 81... Rb7+ {[%clk
0:00:15.5]} 82. Kc2 {[%clk 0:00:05.4]} 82... Kd4 {[%clk 0:00:15.4]} 83. Rd3+
{[%clk 0:00:04.8]} 83... Ke4 {[%clk 0:00:16.1]} 84. Rc3 {[%clk 0:00:05]} 84...
Rb6 {[%clk 0:00:16]} 85. Rb3 {[%clk 0:00:05.1]} 85... Rc6+ {[%clk 0:00:16.4]}
86. Rc3 {[%clk 0:00:05.4]} 86... Ra6 {[%clk 0:00:16.9]} 87. Rb3 {[%clk
0:00:05.4]} 87... Rh6 {[%clk 0:00:17.5]} 88. Rc3 {[%clk 0:00:05.4]} 88... Kd4
{[%clk 0:00:17.4]} 89. Rd3+ {[%clk 0:00:05.1]} 89... Kc4 {[%clk 0:00:18]} 90.
Rc3+ {[%clk 0:00:05.4]} 90... Kb4 {[%clk 0:00:18.7]} 91. Rb3+ {[%clk 0:00:05.5]}
91... Kc4 {[%clk 0:00:19.4]} 92. Rc3+ {[%clk 0:00:05.7]} 92... Kd5 {[%clk
0:00:20.1]} 93. Rd3+ {[%clk 0:00:06.1]} 93... Ke4 {[%clk 0:00:20.8]} 94. Rc3
{[%clk 0:00:06.4]} 94... Rh2+ {[%clk 0:00:20.2]} 95. Kb3 {[%clk 0:00:06.5]}
95... Rh8 {[%clk 0:00:21.1]} 96. Rc4+ {[%clk 0:00:06.4]} 96... Kd3 {[%clk
0:00:20.9]} 97. Rc3+ {[%clk 0:00:07]} 97... Kd4 {[%clk 0:00:21.8]} 98. Rc4+
{[%clk 0:00:07]} 98... Kd5 {[%clk 0:00:22.3]} 99. Rc3 {[%clk 0:00:07.3]} 99...
Rh2 {[%clk 0:00:21.5]} 100. Rc2 {[%clk 0:00:06.9]} 100... Rh3+ {[%clk
0:00:20.2]} 101. Rc3 {[%clk 0:00:07]} 101... Rh4 {[%clk 0:00:21]} 102. Rd3+
{[%clk 0:00:06.5]} 102... Kc5 {[%clk 0:00:21.6]} 103. Rc3+ {[%clk 0:00:06.9]}
103... Kb5 {[%clk 0:00:22.2]} 104. Re3 {[%clk 0:00:07]} 104... Rb4+ {[%clk
0:00:22.2]} 105. Kc3 {[%clk 0:00:07.1]} 105... Rc4+ {[%clk 0:00:22.9]} 106. Kd3
{[%clk 0:00:07.4]} 106... Ra4 {[%clk 0:00:23.7]} 107. Re4 {[%clk 0:00:07.6]}
107... Ra3+ {[%clk 0:00:23.5]} 108. Kd4 {[%clk 0:00:08.1]} 108... Kc6 {[%clk
0:00:23.8]} 109. Ke5 {[%clk 0:00:08.3]} 109... Rf3 {[%clk 0:00:22.8]} 110. Rf4
{[%clk 0:00:07.6]} 110... Rg3 {[%clk 0:00:22.3]} 111. Re4 {[%clk 0:00:07.7]}
111... Rg1 {[%clk 0:00:21.1]} 112. Kf4 {[%clk 0:00:07.8]} 112... Kd5 {[%clk
0:00:21]} 113. Re5+ {[%clk 0:00:08]} 113... Kd4 {[%clk 0:00:21.7]} 114. Re4+
{[%clk 0:00:08.3]} 114... Kd3 {[%clk 0:00:22.1]} 115. Re3+ {[%clk 0:00:08.5]}
115... Kc4 {[%clk 0:00:22.7]} 116. Re4+ {[%clk 0:00:08.8]} 116... Kc5 {[%clk
0:00:23.3]} 117. Re5+ {[%clk 0:00:09]} 117... Kd6 {[%clk 0:00:23.9]} 118. Re4
{[%clk 0:00:09.1]} 118... Rf1+ {[%clk 0:00:24.4]} 119. Ke3 {[%clk 0:00:09.1]}
119... Kc5 {[%clk 0:00:24.9]} 120. Re5+ {[%clk 0:00:08.9]} 120... Kc4 {[%clk
0:00:25]} 121. Re4+ {[%clk 0:00:09.1]} 1/2-1/2

[Event "Early-Titled-Tuesday-Blitz-January-23-2024"]
[Site "Chess.com"]
[Date "2024.01.23"]
[Round "9"]
[White "bangchess21"]
[Black "BogdanDeac"]
[Result "1/2-1/2"]
[WhiteElo "2794"]
[BlackElo "3058"]
[TimeControl "180+1"]
[EndTime "9:48:33 PST"]
[Termination "Game drawn - insufficient material"]

1. d4 {[%clk 0:03:00.9]} 1... Nf6 {[%clk 0:02:58.7]} 2. Nc3 {[%clk 0:03:01.4]}
2... d5 {[%clk 0:02:58.3]} 3. Bf4 {[%clk 0:03:02.1]} 3... e6 {[%clk 0:02:53.1]}
4. Nb5 {[%clk 0:03:02.2]} 4... Bb4+ {[%clk 0:02:51.7]} 5. c3 {[%clk 0:03:01.6]}
5... Ba5 {[%clk 0:02:30.9]} 6. a4 {[%clk 0:03:02]} 6... Bd7 {[%clk 0:02:25]} 7.
e3 {[%clk 0:02:40.6]} 7... a6 {[%clk 0:02:11.3]} 8. b4 {[%clk 0:02:40.6]} 8...
axb5 {[%clk 0:02:10.8]} 9. axb5 {[%clk 0:02:40]} 9... Bxb4 {[%clk 0:02:09.6]}
10. Rxa8 {[%clk 0:02:34.6]} 10... Bxc3+ {[%clk 0:02:08.9]} 11. Ke2 {[%clk
0:02:35.1]} 11... Bxb5+ {[%clk 0:01:19]} 12. Kf3 {[%clk 0:02:35.4]} 12... Bxf1
{[%clk 0:01:15.3]} 13. Qxf1 {[%clk 0:02:36.3]} 13... O-O {[%clk 0:01:12.9]} 14.
g3 {[%clk 0:02:30.8]} 14... Ne4 {[%clk 0:01:05.2]} 15. Qb5 {[%clk 0:02:08.5]}
15... g5 {[%clk 0:01:03.9]} 16. Ne2 {[%clk 0:02:02.7]} 16... gxf4 {[%clk
0:01:01.3]} 17. Nxf4 {[%clk 0:01:58.9]} 17... c5 {[%clk 0:00:53]} 18. dxc5
{[%clk 0:01:51.1]} 18... Qc7 {[%clk 0:00:49.1]} 19. Kg2 {[%clk 0:01:44.4]} 19...
Nd7 {[%clk 0:00:32.6]} 20. Rxf8+ {[%clk 0:01:36.8]} 20... Kxf8 {[%clk 0:00:32]}
21. Rc1 {[%clk 0:01:33.8]} 21... Qc6 {[%clk 0:00:29.6]} 22. Qxc6 {[%clk
0:01:24]} 22... bxc6 {[%clk 0:00:29.5]} 23. f3 {[%clk 0:01:24.7]} 23... Ndxc5
{[%clk 0:00:26.5]} 24. fxe4 {[%clk 0:01:24.1]} 24... Nxe4 {[%clk 0:00:27.4]} 25.
Ne2 {[%clk 0:01:12.6]} 25... Bd2 {[%clk 0:00:27.5]} 26. Rxc6 {[%clk 0:01:13.1]}
26... Bxe3 {[%clk 0:00:28.1]} 27. Nf4 {[%clk 0:00:57.8]} 27... Bxf4 {[%clk
0:00:21.9]} 28. gxf4 {[%clk 0:00:58.7]} 28... Kg7 {[%clk 0:00:17.9]} 29. Kf3
{[%clk 0:00:37.8]} 29... Kg6 {[%clk 0:00:14.1]} 30. Rc7 {[%clk 0:00:35.7]} 30...
Nd6 {[%clk 0:00:12.4]} 31. Rd7 {[%clk 0:00:34.2]} 31... Nf5 {[%clk 0:00:12.5]}
32. Kg4 {[%clk 0:00:32]} 32... Kf6 {[%clk 0:00:10.8]} 33. Kf3 {[%clk 0:00:32.2]}
33... Ne7 {[%clk 0:00:10]} 34. Kg4 {[%clk 0:00:28.9]} 34... Ng6 {[%clk 0:00:10]}
35. h4 {[%clk 0:00:25.3]} 35... Ne7 {[%clk 0:00:07.8]} 36. Rd8 {[%clk
0:00:21.9]} 36... Nf5 {[%clk 0:00:06.8]} 37. Rd7 {[%clk 0:00:22.3]} 37... Kg7
{[%clk 0:00:05]} 38. Rd8 {[%clk 0:00:20.5]} 38... Kg6 {[%clk 0:00:04.2]} 39.
Rg8+ {[%clk 0:00:15.6]} 39... Kf6 {[%clk 0:00:04.3]} 40. Rd8 {[%clk 0:00:16.1]}
40... Kg7 {[%clk 0:00:04.1]} 41. Kg5 {[%clk 0:00:12.3]} 41... h6+ {[%clk
0:00:03.7]} 42. Kg4 {[%clk 0:00:12.8]} 42... Ne7 {[%clk 0:00:03.7]} 43. Rd7
{[%clk 0:00:12.5]} 43... Ng8 {[%clk 0:00:04]} 44. Rd8 {[%clk 0:00:11.9]} 44...
Nf6+ {[%clk 0:00:03.6]} 45. Kf3 {[%clk 0:00:12.5]} 45... Kg6 {[%clk 0:00:04.3]}
46. Rd6 {[%clk 0:00:10.3]} 46... Kf5 {[%clk 0:00:04]} 47. Rd8 {[%clk 0:00:11]}
47... Ne4 {[%clk 0:00:04]} 48. Rf8 {[%clk 0:00:10.6]} 48... Kf6 {[%clk 0:00:04]}
49. Rh8 {[%clk 0:00:10.7]} 49... Kg7 {[%clk 0:00:03.9]} 50. Rd8 {[%clk
0:00:11.4]} 50... Nf6 {[%clk 0:00:03.9]} 51. Rc8 {[%clk 0:00:10.6]} 51... Ng8
{[%clk 0:00:03.5]} 52. Rd8 {[%clk 0:00:10.7]} 52... Ne7 {[%clk 0:00:03.6]} 53.
Re8 {[%clk 0:00:11.3]} 53... Nf5 {[%clk 0:00:04]} 54. Kg4 {[%clk 0:00:11.5]}
54... Kg6 {[%clk 0:00:04.6]} 55. Rg8+ {[%clk 0:00:11.6]} 55... Kf6 {[%clk
0:00:05.1]} 56. Rd8 {[%clk 0:00:10.2]} 56... Ke7 {[%clk 0:00:05.4]} 57. Ra8
{[%clk 0:00:09.3]} 57... Kd7 {[%clk 0:00:04.3]} 58. Ra7+ {[%clk 0:00:09.4]}
58... Ke8 {[%clk 0:00:04.9]} 59. Ra8+ {[%clk 0:00:07.7]} 59... Ke7 {[%clk
0:00:05.2]} 60. Ra7+ {[%clk 0:00:08.6]} 60... Kf6 {[%clk 0:00:05.5]} 61. Ra8
{[%clk 0:00:09.2]} 61... Kg7 {[%clk 0:00:05.6]} 62. Rd8 {[%clk 0:00:08.9]} 62...
Ne3+ {[%clk 0:00:05.1]} 63. Kf3 {[%clk 0:00:09.2]} 63... Nc4 {[%clk 0:00:05.8]}
64. Kg4 {[%clk 0:00:07.8]} 64... Kf6 {[%clk 0:00:06.1]} 65. Rh8 {[%clk
0:00:07.5]} 65... Ne3+ {[%clk 0:00:06.4]} 66. Kf3 {[%clk 0:00:07.5]} 66... Nf5
{[%clk 0:00:06.9]} 67. Rd8 {[%clk 0:00:08.1]} 67... Nxh4+ {[%clk 0:00:06.2]} 68.
Kg4 {[%clk 0:00:08]} 68... Nf5 {[%clk 0:00:06.9]} 69. Rc8 {[%clk 0:00:07.5]}
69... Kg6 {[%clk 0:00:06.4]} 70. Rg8+ {[%clk 0:00:07.8]} 70... Kh7 {[%clk
0:00:05.9]} 71. Rd8 {[%clk 0:00:08]} 71... Kg7 {[%clk 0:00:06.1]} 72. Rc8 {[%clk
0:00:08]} 72... Nd6 {[%clk 0:00:05.4]} 73. Rd8 {[%clk 0:00:08.2]} 73... Ne4
{[%clk 0:00:05.8]} 74. Rc8 {[%clk 0:00:08.2]} 74... Nd6 {[%clk 0:00:05]} 75. Rd8
{[%clk 0:00:08.3]} 75... Nf5 {[%clk 0:00:05.3]} 76. Rc8 {[%clk 0:00:08.2]} 76...
d4 {[%clk 0:00:05.4]} 77. Rd8 {[%clk 0:00:08.1]} 77... Kg6 {[%clk 0:00:05.8]}
78. Rg8+ {[%clk 0:00:08]} 78... Kf6 {[%clk 0:00:06.2]} 79. Rd8 {[%clk
0:00:08.5]} 79... Ke7 {[%clk 0:00:06.6]} 80. Ra8 {[%clk 0:00:08.6]} 80... Kd6
{[%clk 0:00:06.1]} 81. Kf3 {[%clk 0:00:08.5]} 81... Ke7 {[%clk 0:00:04.4]} 82.
Ke4 {[%clk 0:00:08.1]} 82... h5 {[%clk 0:00:04.2]} 83. Rh8 {[%clk 0:00:08.2]}
83... h4 {[%clk 0:00:03.9]} 84. Ra8 {[%clk 0:00:05.9]} 84... Kf6 {[%clk
0:00:04.1]} 85. Kf3 {[%clk 0:00:05.4]} 85... Kg6 {[%clk 0:00:03.9]} 86. Rd8
{[%clk 0:00:05.9]} 86... Kg7 {[%clk 0:00:03.9]} 87. Kg4 {[%clk 0:00:05.1]} 87...
Kf6 {[%clk 0:00:04.2]} 88. Kf3 {[%clk 0:00:05.6]} 88... Ke7 {[%clk 0:00:04.3]}
89. Ra8 {[%clk 0:00:06]} 89... Kd6 {[%clk 0:00:04.3]} 90. Rc8 {[%clk 0:00:05.6]}
90... Kd5 {[%clk 0:00:04.4]} 91. Rc7 {[%clk 0:00:06.1]} 91... d3 {[%clk
0:00:04.1]} 92. Rd7+ {[%clk 0:00:04.2]} 92... Kc4 {[%clk 0:00:04.2]} 93. Ke4
{[%clk 0:00:04.9]} 93... h3 {[%clk 0:00:03]} 94. Rxd3 {[%clk 0:00:04.4]} 94...
h2 {[%clk 0:00:03.3]} 95. Rh3 {[%clk 0:00:02.6]} 95... h1=Q+ {[%clk 0:00:03.4]}
96. Rxh1 {[%clk 0:00:02.6]} 96... Ng3+ {[%clk 0:00:03.9]} 97. Ke5 {[%clk
0:00:03.2]} 97... Nxh1 {[%clk 0:00:04.6]} 98. f5 {[%clk 0:00:03]} 98... Nf2
{[%clk 0:00:02.8]} 99. fxe6 {[%clk 0:00:02.9]} 99... Ng4+ {[%clk 0:00:03.7]}
100. Kf5 {[%clk 0:00:02.4]} 100... Ne3+ {[%clk 0:00:04.3]} 101. Kf6 {[%clk
0:00:02.5]} 101... Nd5+ {[%clk 0:00:04.8]} 102. Kxf7 {[%clk 0:00:02.8]} 102...
Kc5 {[%clk 0:00:05.5]} 103. e7 {[%clk 0:00:03.3]} 103... Nxe7 {[%clk 0:00:06.2]}
1/2-1/2